bitfinex-derivatives/quotes_ETHF0:USTF0_20250817
["timestamp","ask_amount","ask_price","bid_price","bid_amount"]
[1755472588261,3.6276,4509.2,4509.1,21.7882]
[1755472588453,3.3078,4509.2,4509.1,21.7882]
[1755472589456,0.1,4509.2,4509.1,21.7882]
[1755472595059,1.3472,4509.2,4509.1,20.7815]
[1755472595956,1.3472,4509.2,4509.1,0.4225]
[1755472596162,1.3472,4509.2,4509.1,20.7815]
[1755472596362,1.3472,4509.2,4509.1,21.1359]
[1755472597665,1.0896,4509.2,4509.1,21.7832]
[1755472598057,1.3472,4509.2,4509.1,21.7832]
[1755472598860,1.3472,4509.2,4509.1,21.5379]
[1755472599060,1.3472,4509.2,4509.1,21.3]
[1755472599461,1.3472,4509.2,4509.1,21.5379]
[1755472601654,1.3472,4509.2,4509.1,21.7832]
[1755472601860,0.1,4509.2,4509.1,21.7832]
[1755472602156,0.1,4509.2,4509.1,24.991]
[1755472602359,0.1,4509.2,4509.1,21.7832]
[1755472603164,0.674,4509.2,4509.1,21.7832]
[1755472603357,1.3472,4509.2,4509.1,21.7832]
[1755472603554,0.9226,4509.2,4509.1,21.7832]
[1755472603959,0.674,4509.2,4509.1,21.7832]
[1755472607365,0.674,4509.2,4509.1,24.991]
[1755472608657,0.1,4509.2,4509.1,24.991]
[1755472609063,0.2539,4510.6,4509.3,0.0221]
[1755472609364,3.2078,4511.0,4510.9,1.4833]
[1755472609365,0.3204,4511.0,4510.9,1.4833]
[1755472609572,3.2078,4512.0,4511.4,1.03333]
[1755472609868,0.8409,4511.8,4511.7,0.5903]
[1755472610064,0.2539,4512.2,4511.7,21.8343]
[1755472610264,1.0854,4512.5,4512.4,0.4204]
[1755472610466,1.3238,4512.5,4512.4,21.1525]
[1755472610665,1.3238,4512.5,4512.4,21.8343]
[1755472612267,0.5588,4512.5,4512.4,21.8343]
[1755472612473,0.3204,4512.5,4512.4,21.8343]
[1755472612780,1.3238,4512.6,4512.5,1.2326]
[1755472613074,1.3238,4511.7,4511.6,1.2326]
[1755472613271,1.3238,4511.7,4511.6,21.5786]
[1755472613463,0.159,4512.1,4512.0,0.1699]
[1755472613664,0.5649,4512.1,4512.0,21.8293]
[1755472613868,0.1614,4512.1,4512.0,21.8293]
[1755472614064,3.2078,4512.6,4512.1,0.893]
[1755472614271,4.5316,4512.6,4512.5,0.5903]
[1755472614469,4.5316,4512.6,4512.5,0.9714]
[1755472614674,4.5316,4512.6,4512.4,20.346]
[1755472614975,1.3238,4512.5,4512.4,20.346]
[1755472615171,0.7589,4512.4,4512.1,20.346]
[1755472615376,1.3238,4512.2,4512.1,20.346]
[1755472615576,0.5649,4512.2,4511.6,0.6423]
[1755472615778,1.3238,4511.5,4511.4,0.8015]
[1755472616073,1.3238,4511.5,4511.4,21.1445]
[1755472617874,1.3238,4511.5,4511.1,0.3811]
[1755472618078,1.3238,4511.5,4510.9,0.2612]
[1755472618079,0.5649,4511.3,4511.2,20.342]
[1755472618280,1.3238,4511.3,4511.2,20.342]
[1755472619080,0.3204,4510.4,4510.3,3.7981]
[1755472619289,1.3238,4510.4,4510.3,24.651]
[1755472619483,1.3238,4510.4,4510.3,20.5908]
[1755472620487,1.3238,4510.4,4510.3,21.8243]
[1755472620697,1.3238,4510.4,4510.3,20.341]
[1755472620889,1.3238,4510.4,4510.0,0.2612]
[1755472621193,1.3238,4509.8,4509.7,1.2326]
[1755472621387,1.3238,4509.8,4509.7,21.5726]
[1755472621586,0.4923,4509.7,4509.2,0.6423]
[1755472621790,1.3238,4509.3,4509.2,1.2326]
[1755472621991,1.3238,4509.3,4509.2,21.5736]
[1755472622495,1.3238,4509.3,4509.2,20.341]
[1755472622694,0.3204,4508.6,4508.5,35.389]
[1755472622991,1.0572,4508.6,4508.5,56.3618]
[1755472623192,1.3238,4508.6,4508.5,56.3618]
[1755472623692,1.3238,4508.6,4508.5,53.154]
[1755472625589,1.3238,4508.6,4508.5,52.9033]
[1755472625785,1.3238,4508.6,4508.5,32.813]
[1755472625990,1.3238,4508.6,4508.5,53.156]
[1755472627790,1.3238,4508.2,4508.1,0.94081922]
[1755472627995,1.3238,4508.2,4508.1,21.28581922]
[1755472628495,1.3238,4508.2,4508.1,21.92811922]
[1755472628895,0.2384,4508.9,4508.1,21.03511922]
[1755472629091,1.0572,4508.9,4508.8,1.1022]
[1755472629292,1.3238,4508.9,4508.8,21.8273]
[1755472629492,1.3238,4508.9,4508.8,21.5766]
[1755472631104,1.3238,4508.9,4508.8,20.7644]
[1755472631689,1.3238,4508.9,4508.8,20.344]
[1755472631897,1.3238,4508.9,4508.8,20.7644]
[1755472632895,0.5649,4508.2,4508.1,0.52021922]
[1755472633095,1.3238,4508.2,4508.1,20.86521922]
[1755472633301,1.3238,4508.2,4508.1,21.92811922]
[1755472633796,0.5588,4508.2,4508.1,21.92811922]
[1755472633998,3.7666,4509.0,4508.9,0.4204]
[1755472634197,3.7666,4509.0,4508.9,21.8293]
[1755472634597,0.5588,4509.0,4508.9,21.8293]
[1755472634998,0.8127,4509.0,4508.9,21.8293]
[1755472635398,1.0793,4509.0,4508.9,21.8293]
[1755472635599,1.3238,4509.0,4508.9,20.346]
[1755472635806,1.3238,4509.0,4508.9,20.7664]
[1755472636104,1.3238,4509.0,4508.9,21.5786]
[1755472636303,1.3238,4509.0,4508.9,21.8293]
[1755472636504,1.0572,4509.0,4508.9,21.8293]
[1755472636705,0.5588,4509.0,4508.9,21.8293]
[1755472637894,0.8025,4509.0,4508.9,21.8293]
[1755472638199,1.0686,4509.0,4508.9,21.8293]
[1755472638406,1.3063,4509.0,4508.9,21.8293]
[1755472639209,1.0402,4509.0,4508.9,21.8293]
[1755472639505,0.5046,4509.3,4508.9,20.9363]
[1755472639804,3.2078,4509.5,4509.2,1.05055]
[1755472640001,1.0824,4510.1,4510.0,1.1047]
[1755472640300,1.3485,4510.1,4510.0,21.8116]
[1755472640500,1.3485,4510.1,4510.0,20.9322]
[1755472640907,1.3485,4510.1,4510.0,20.5889]
[1755472641107,0.5778,4509.3,4509.2,0.9451]
[1755472641302,3.2078,4511.6,4510.5,0.44312]
[1755472641501,0.19543872,4511.5,4511.4,1.4646]
[1755472641703,33.520691,4514.6,4511.7,0.5852]
[1755472641704,0.2609,4512.1,4511.7,0.5852]
[1755472641906,0.2609,4512.1,4512.0,1.4646]
[1755472642106,0.601,4512.7,4512.6,0.3433]
[1755472642302,0.5778,4512.7,4512.5,20.45]
[1755472642503,1.0824,4512.6,4512.5,20.45]
[1755472642803,0.5778,4512.6,4511.8,3.2078]
[1755472642999,1.0824,4511.9,4511.8,3.3809]
[1755472643195,1.4399,4511.9,4511.8,24.5023]
[1755472643408,1.4399,4511.9,4511.8,25.1224]
[1755472643707,1.4399,4511.9,4511.8,25.1214]
[1755472644306,0.4317,4512.8,4512.7,0.1731]
[1755472644507,1.4399,4512.8,4512.7,20.8794]
[1755472645110,1.6354185,4512.8,4512.7,20.8794]
[1755472645307,1.4399,4512.8,4512.7,20.8794]
[1755472645509,1.4399,4512.8,4512.7,20.447]
[1755472645712,0.6184,4512.7,4512.6,20.447]
[1755472645912,1.4399,4512.7,4512.6,20.447]
[1755472650513,0.8387,4511.9,4511.8,0.1731]
[1755472650707,0.3575,4511.1,4510.6,3.5677]
[1755472650914,0.9353,4510.7,4510.6,4.4122]
[1755472651211,1.4399,4510.7,4510.6,4.6724]
[1755472651718,1.4399,4510.7,4510.6,1.4646]
[1755472652013,0.5778,4510.7,4510.1,2.0507]
[1755472652221,0.5778,4510.1,4510.0,0.1731]
[1755472652423,0.5778,4510.1,4510.0,0.4324]
[1755472652722,0.5778,4510.1,4509.8,20.446]
[1755472652908,0.5778,4509.9,4509.8,20.446]
[1755472653116,1.4399,4509.9,4509.8,0.1731]
[1755472653420,1.4399,4509.9,4509.8,0.3433]
[1755472653715,1.4399,4509.9,4509.8,0.1731]
[1755472654108,0.8621,4509.8,4509.7,20.446]
[1755472654313,1.4399,4509.8,4509.7,20.446]
[1755472654915,1.4399,4509.8,4509.7,20.6191]
[1755472655113,1.4399,4509.8,4509.7,0.4324]
[1755472655311,1.4399,4509.8,4509.7,20.8804]
[1755472656619,0.3401,4509.5,4509.2,0.2602]
[1755472656924,1.4399,4509.4,4509.3,20.44]
[1755472657721,0.0221,4509.3,4508.5,3.2078]
[1755472657923,1.4399,4508.2,4507.5,0.2602]
[1755472658221,1.4399,4508.2,4507.7,4.7469]
[1755472658416,1.4399,4508.2,4507.7,5.1068]
[1755472658620,1.4399,4508.2,4507.7,0.6192]
[1755472660220,1.4399,4508.2,4508.1,0.68501922]
[1755472660423,1.4399,4508.2,4508.1,1.56441922]
[1755472662026,1.4399,4508.2,4508.1,0.77411922]
[1755472662723,1.4399,4508.2,4508.1,0.09981922]
[1755472664022,6.8077,4508.2,4507.3,3.2078]
[1755472664227,0.5778,4506.9,4506.8,0.8445]
[1755472664421,1.4399,4506.9,4506.8,1.4646]
[1755472666227,0.8387,4506.9,4506.8,1.4646]
[1755472666428,0.5778,4506.9,4506.8,1.4646]
[1755472666624,0.8621,4507.3,4506.8,1.4646]
[1755472666830,1.4399,4507.2,4507.1,0.5852]
[1755472667122,1.4399,4507.2,4507.1,1.4646]
[1755472667325,1.4399,4507.2,4507.1,21.8986]
[1755472671020,1.4399,4507.2,4507.1,1.4646]
[1755472671331,1.4399,4507.2,4507.1,21.8906]
[1755472671624,1.4399,4507.2,4507.1,21.8826]
[1755472673830,1.4399,4507.2,4507.1,21.8746]
[1755472674432,3.2078,4507.7,4507.6,0.5688]
[1755472674731,1.4623,4507.7,4507.6,1.4608]
[1755472674932,4.4162,4507.7,4507.6,1.4608]
[1755472675132,0.8404,4507.7,4507.6,1.4608]
[1755472675541,1.4623,4507.7,4507.6,1.4608]
[1755472677130,1.2125,4508.2,4508.1,0.333]
[1755472677434,1.65999481,4508.2,4508.1,0.3989]
[1755472679034,1.65999481,4508.2,4508.1,1.2011]
[1755472679231,1.65999481,4508.2,4508.1,1.4608]
[1755472679436,1.65999481,4508.2,4508.1,0.8091]
[1755472683444,1.4623,4508.2,4508.1,0.5688]
[1755472683743,1.66114823,4508.2,4508.1,0.5688]
[1755472684244,2.17779335,4508.2,4508.1,0.1631]
[1755472686638,2.17826271,4508.2,4508.1,0.1631]
[1755472688142,2.17826271,4508.2,4507.4,20.409]
[1755472688341,0.594,4507.0,4506.9,1.4608]
[1755472688545,1.0397146,4507.0,4506.9,1.4608]
[1755472689640,0.1993146,4507.0,4506.9,1.4608]
[1755472689842,0.1993146,4507.0,4506.9,0.1631]
[1755472689843,1.4623,4507.0,4506.9,0.1631]
[1755472690048,1.6616146,4507.0,4506.9,0.1631]
[1755472690244,1.6616146,4507.0,4506.9,0.4034]
[1755472690549,1.6616146,4507.0,4506.0,1.58231544]
[1755472690550,0.8404,4506.4,4506.3,0.3989]
[1755472690747,1.6616146,4506.4,4506.3,0.3989]
[1755472691750,1.6616146,4506.4,4506.3,1.4608]
[1755472692241,0.1993146,4506.4,4506.3,1.4608]
[1755472692442,0.1993146,4506.4,4505.9,20.377]
[1755472692443,1.6616146,4506.5,4506.4,1.225]
[1755472692649,1.66167822,4506.5,4506.4,1.4608]
[1755472692837,1.66314676,4506.5,4506.4,1.4608]
[1755472693345,1.4623,4506.5,4506.4,1.2011]
[1755472693546,1.4623,4506.5,4506.4,0.3989]
[1755472693745,1.98025303,4506.5,4506.4,0.3989]
[1755472693939,1.98025303,4506.5,4506.4,0.6392]
[1755472695047,1.98025303,4506.5,4506.4,1.2011]
[1755472695252,0.51795303,4506.5,4506.4,1.4608]
[1755472695547,3.2078,4506.6,4505.6,3.2078]
[1755472695548,4.0482,4506.6,4506.5,1.4608]
[1755472695848,5.38864483,4506.6,4506.5,0.3989]
[1755472696051,5.38856831,4506.6,4506.5,0.1631]
[1755472696244,0.2464,4506.3,4505.7,0.892]
[1755472696547,1.4623,4506.3,4506.2,0.1631]
[1755472696849,1.66304677,4506.3,4506.2,1.2011]
[1755472698346,1.66304677,4506.3,4505.3,0.8943]
[1755472698551,1.1043,4505.4,4505.3,1.4622]
[1755472698747,1.67934677,4505.4,4505.3,1.4622]
[1755472699151,1.43094677,4505.4,4505.3,1.4622]
[1755472699348,0.20074677,4505.4,4505.3,1.4622]
[1755472701350,0.20025581,4505.4,4505.3,1.4622]
[1755472701550,1.05615581,4505.4,4505.3,1.4622]
[1755472702143,1.05615581,4505.4,4505.3,0.401]
[1755472702144,0.20025581,4505.4,4505.3,0.401]
[1755472702340,0.79505581,4505.4,4505.3,21.8312]
[1755472702643,0.20025581,4505.4,4505.3,21.8312]
[1755472704554,1.4786,4505.9,4505.8,0.3276]
[1755472704747,1.67862193,4505.9,4505.8,0.3276]
[1755472704948,1.67862192,4505.9,4505.8,0.3276]
[1755472705150,1.4786,4505.9,4505.8,0.3276]
[1755472705351,1.67862192,4505.9,4505.8,0.1607]
[1755472705556,4.88642192,4505.9,4505.8,0.1607]
[1755472707051,0.5948,4505.6,4505.5,20.371]
[1755472707261,1.67862192,4505.6,4505.5,20.371]
[1755472707552,1.67862192,4505.6,4505.5,20.5317]
[1755472709055,1.67862192,4505.6,4505.5,0.1607]
[1755472709256,0.79482192,4505.6,4505.4,20.372]
[1755472709451,1.4786,4505.3,4505.2,1.4622]
[1755472709654,0.1665,4504.6,4504.5,32.1975]
[1755472709959,1.4786,4504.6,4504.5,32.583]
[1755472710150,1.4786,4504.6,4504.5,53.2163]
[1755472711853,1.4786,4504.6,4504.5,32.8443]
[1755472712051,1.4786,4504.6,4504.5,53.2173]
[1755472713455,0.5948,4504.1,4504.0,4.4087]
[1755472713646,1.4786,4504.1,4504.0,25.043]
[1755472713851,1.2302,4504.1,4504.0,25.043]
[1755472714053,0.8838,4505.1,4504.2,0.3855]
[1755472714250,1.4786,4505.1,4505.0,0.1607]
[1755472714460,1.4786,4504.8,4504.7,1.034]
[1755472714755,1.67841163,4504.8,4504.7,1.034]
[1755472714955,1.67841163,4504.8,4504.7,1.2009]
[1755472715158,1.67841163,4504.8,4504.7,1.4622]
[1755472715653,0.19981163,4504.8,4504.7,1.4622]
[1755472715952,1.67841163,4504.8,4504.7,0.5679]
[1755472716154,1.67841163,4504.8,4504.7,0.8154]
[1755472716451,1.67841163,4504.8,4504.0,3.23]
[1755472716452,0.4232,4504.2,4504.1,0.6623]
[1755472716654,0.8559,4504.2,4504.1,1.4622]
[1755472716958,0.5948,4504.6,4504.5,0.5679]
[1755472717157,1.04305443,4504.6,4504.5,21.8382]
[1755472717650,1.67845443,4504.6,4504.5,21.8382]
[1755472718961,0.19985443,4504.6,4504.5,21.8382]
[1755472720555,1.05575443,4504.6,4504.5,21.8382]
[1755472720749,0.79465443,4504.6,4504.5,21.8382]
[1755472720955,0.19985443,4504.6,4504.5,21.8382]
[1755472721253,1.67845443,4504.6,4504.5,21.8382]
[1755472722259,0.19985443,4504.6,4504.5,21.8382]
[1755472722459,1.67845443,4504.6,4504.5,21.8382]
[1755472722955,1.68406175,4504.6,4504.5,21.8382]
[1755472723454,1.6840702,4504.6,4504.5,21.8382]
[1755472724064,1.4356702,4504.6,4504.5,21.8382]
[1755472724360,1.0613702,4504.6,4504.5,21.8382]
[1755472724557,0.2054702,4504.6,4504.5,21.8382]
[1755472724765,0.2054702,4504.6,4504.5,25.046]
[1755472726763,0.4665702,4504.6,4504.5,25.046]
[1755472727465,1.0613702,4504.6,4504.5,25.046]
[1755472729364,1.6960702,4504.6,4504.5,25.046]
[1755472731660,1.6960702,4504.6,4504.5,25.0236]
[1755472732269,1.69622296,4504.6,4504.5,25.0236]
[1755472732664,0.80043023,4504.6,4504.5,20.376]
[1755472733369,1.68083023,4504.6,4504.5,20.376]
[1755472735469,1.68083023,4504.6,4504.5,20.5455]
[1755472735869,1.68083023,4504.6,4504.5,20.8006]
[1755472736270,1.68083023,4504.6,4504.5,20.5455]
[1755472737169,1.68083023,4504.6,4504.5,20.376]
[1755472738468,0.327,4504.4,4504.3,21.0203]
[1755472738773,1.66333023,4504.4,4504.3,0.8148]
[1755472738960,0.8804,4504.3,4503.8,1.58231544]
[1755472739162,0.5773,4503.5,4502.7,7.52257521]
[1755472739364,1.4577,4502.9,4502.8,1.4754]
[1755472739569,1.66333023,4502.9,4502.8,1.4754]
[1755472740168,0.74223023,4502.9,4502.3,5.47151544]
[1755472740364,10.551691,4505.1,4502.6,1.0852]
[1755472740365,1.4577,4502.7,4502.6,1.0852]
[1755472740568,0.20563023,4502.7,4502.6,21.8886]
[1755472740765,3.4535,4503.8,4503.7,1.4754]
[1755472740766,3.2078,4503.8,4503.7,1.4754]
[1755472741074,4.61481394,4503.8,4503.7,21.8694]
[1755472741269,1.4577,4503.7,4503.6,20.9912]
[1755472741466,3.2078,4503.8,4503.6,21.8754]
[1755472741670,0.20591688,4503.7,4503.6,21.8754]
[1755472741975,1.66361688,4503.7,4503.6,1.4754]
[1755472742174,1.66361688,4503.7,4503.6,21.0052]
[1755472742376,1.66361688,4503.7,4503.6,21.8894]
[1755472742878,1.4577,4503.6,4503.5,0.1695]
[1755472743077,0.20591688,4503.6,4503.5,1.4754]
[1755472743278,0.20591688,4503.6,4503.5,1.4976]
[1755472744180,0.5773,4502.6,4502.5,0.8463]
[1755472744379,1.66361688,4502.6,4502.5,21.6805]
[1755472744581,1.66361688,4502.6,4502.5,21.9194]
[1755472744880,4.4089,4503.4,4503.3,0.3342]
[1755472745083,3.7851,4503.4,4503.3,20.455]
[1755472745386,4.0417,4503.4,4503.3,20.455]
[1755472745772,0.8804,4503.3,4503.2,20.456]
[1755472745977,0.8339,4503.3,4503.2,20.456]
[1755472746177,0.8339,4503.3,4503.2,20.6255]
[1755472746579,1.4577,4503.3,4503.2,20.6255]
[1755472747387,0.5773,4503.3,4503.2,20.478]
[1755472747991,1.4577,4503.3,4503.2,20.6475]
[1755472748176,0.2457,4503.8,4503.3,1.0537]
[1755472748485,1.4577,4503.8,4503.7,0.5912]
[1755472748878,1.4577,4503.8,4503.7,0.8463]
[1755472749785,1.4577,4503.8,4503.7,1.4754]
[1755472750088,1.4577,4503.8,4503.7,21.9704]
[1755472752986,1.4577,4503.8,4503.7,1.4754]
[1755472753188,1.4577,4503.8,4503.7,21.9584]
[1755472753881,1.4577,4503.8,4503.1,3.2078]
[1755472754089,0.5773,4503.2,4503.1,0.8301]
[1755472754281,1.2011,4503.2,4503.1,21.3101]
[1755472754684,1.2011,4503.2,4503.1,21.9554]
[1755472757586,0.823,4503.2,4503.1,20.6395]
[1755472757784,1.4281,4503.2,4503.1,20.8898]
[1755472757985,1.4281,4503.2,4503.1,20.6395]
[1755472758187,1.4288,4502.6,4502.5,4.4262]
[1755472758489,1.4288,4502.6,4502.5,23.6778]
[1755472759290,1.4288,4502.6,4502.5,23.8516]
[1755472760681,1.4288,4502.6,4502.5,23.6778]
[1755472761287,1.4288,4502.5,4502.4,20.461]
[1755472761488,1.4288,4502.5,4502.4,20.6348]
[1755472762692,0.5843,4501.9,4501.8,1.4662]
[1755472762887,4.6366,4503.2,4503.1,1.4662]
[1755472763294,4.3944,4503.2,4503.1,1.4662]
[1755472763689,4.6366,4503.2,4503.1,1.4662]
[1755472764195,4.6366,4503.2,4503.1,1.0583]
[1755472764383,4.6366,4503.2,4503.1,21.5243]
[1755472765097,4.6366,4503.2,4503.1,20.465]
[1755472765291,4.6366,4503.2,4503.1,20.6388]
[1755472765595,4.6366,4503.2,4503.1,21.9312]
[1755472766893,0.3409,4502.5,4502.4,0.3339]
[1755472767195,0.5843,4502.5,4502.4,20.7949]
[1755472767384,0.5843,4502.5,4502.4,0.1738]
[1755472767586,1.4288,4502.5,4502.4,20.6358]
[1755472768695,1.4288,4502.5,4502.4,20.8861]
[1755472768895,1.4288,4502.5,4502.4,21.0462]
[1755472769203,1.4288,4502.5,4502.4,21.9272]
[1755472771897,1.4288,4502.5,4502.4,1.4662]
[1755472772091,1.4288,4502.5,4502.4,21.6694]
[1755472772292,3.2078,4502.7,4501.7,3.2078]
[1755472772293,0.2616,4502.6,4501.7,3.2078]
[1755472772593,0.1678,4501.8,4501.7,21.6694]
[1755472772797,0.4072,4501.8,4501.7,21.6694]
[1755472772998,0.4072,4501.8,4501.7,21.9172]
[1755472773299,1.1866,4501.8,4501.7,0.3339]
[1755472773491,1.4288,4501.8,4501.7,20.6228]
[1755472773894,0.1731,4501.6,4501.5,0.1738]
[1755472774101,0.9472,4501.6,4501.5,1.4662]
[1755472774396,1.4288,4501.6,4501.5,1.4662]
[1755472774592,0.8237,4501.6,4501.5,1.4662]
[1755472774798,4.6366,4502.1,4502.0,1.4662]
[1755472775200,0.8265,4501.2,4501.1,0.69497445]
[1755472775392,3.2078,4501.6,4501.1,1.56617445]
[1755472775592,1.4288,4501.5,4501.4,0.3339]
[1755472775898,1.4288,4501.5,4501.4,1.4662]
[1755472776095,0.8445,4502.2,4501.3,23.7178]
[1755472776293,1.4288,4501.6,4501.5,0.8453]
[1755472776490,1.4288,4501.6,4501.5,1.4662]
[1755472776995,1.4288,4501.6,4501.5,0.1738]
[1755472777305,1.4288,4501.3,4501.2,0.1738]
[1755472777700,1.4288,4501.3,4501.2,0.9573]
[1755472777998,1.4288,4501.8,4501.7,1.4662]
[1755472778199,1.4288,4501.8,4501.1,0.09997445]
[1755472778200,0.6051,4501.7,4501.2,0.8712]
[1755472778404,1.4288,4501.3,4501.2,1.4662]
[1755472779304,1.1866,4501.3,4501.2,1.4662]
[1755472779895,3.2078,4501.8,4501.2,0.595]
[1755472780099,3.2078,4501.8,4501.1,0.09997445]
[1755472780100,4.6366,4501.8,4501.7,0.8453]
[1755472780406,1.1866,4501.8,4501.7,1.4662]
[1755472780596,0.4165,4501.8,4501.7,1.4662]
[1755472780797,3.2078,4502.3,4501.7,0.595]
[1755472781098,3.2078,4502.3,4501.6,20.502]
[1755472781099,1.4288,4502.1,4502.0,1.4662]
[1755472781292,0.8445,4502.0,4501.4,0.6234]
[1755472781503,0.3409,4501.2,4501.1,0.09997445]
[1755472781706,1.4288,4501.2,4501.1,0.09997445]
[1755472782299,3.2078,4501.8,4501.1,0.69497445]
[1755472782502,1.4288,4501.7,4501.6,0.1738]
[1755472782804,1.4288,4501.7,4501.6,0.9573]
[1755472783192,3.45,4502.3,4501.3,3.2078]
[1755472783393,0.8225,4501.3,4501.2,0.7592]
[1755472783597,1.4288,4501.3,4501.2,1.4662]
[1755472784805,0.8237,4502.1,4502.0,0.3339]
[1755472785099,0.8237,4502.1,4502.0,0.8453]
[1755472785297,1.4288,4502.1,4502.0,1.4662]
[1755472785700,1.4288,4502.1,4502.0,0.5842]
[1755472785902,1.4288,4502.1,4502.0,0.1738]
[1755472786299,1.4288,4502.1,4501.1,0.09997445]
[1755472786501,0.5843,4501.2,4501.1,0.69497445]
[1755472786799,1.4288,4501.2,4501.1,0.09997445]
[1755472787194,7.6366,4501.2,4500.5,4.6401]
[1755472787392,1.1866,4500.6,4500.5,6.1063]
[1755472787594,1.4288,4500.6,4500.5,6.1063]
[1755472788000,1.4288,4500.6,4500.5,1.4662]
[1755472788996,1.4288,4500.6,4498.4,0.44459758]
[1755472788997,0.0222,4500.5,4498.4,0.44459758]
[1755472789199,0.0222,4500.5,4496.9,5.17593308]
[1755472789200,0.6111,4498.5,4497.0,0.2396]
[1755472789403,0.8552,4498.8,4498.2,4.4305]
[1755472789605,4.063,4498.3,4498.2,4.4305]
[1755472789795,3.2078,4498.3,4498.2,4.6701]
[1755472789994,3.2078,4498.8,4498.2,4.4305]
[1755472790195,3.2078,4498.8,4498.5,0.8751]
[1755472790395,3.2078,4498.8,4498.5,0.4962]
[1755472790608,3.2078,4498.8,4498.7,0.8751]
[1755472790796,3.2078,4498.8,4498.7,0.8973]
[1755472790996,3.2078,4499.3,4499.2,0.4805]
[1755472791200,3.4571,4499.3,4498.8,0.1034]
[1755472791507,0.24507822,4499.1,4499.0,0.2239]
[1755472791808,0.48917822,4499.1,4499.0,0.2239]
[1755472792508,0.85097822,4499.1,4499.0,0.2239]
[1755472792706,0.48917822,4499.1,4499.0,0.4805]
[1755472792905,3.2078,4499.3,4499.2,0.5266]
[1755472793205,3.2078,4499.3,4499.2,1.0071]
[1755472793411,3.2078,4499.3,4499.2,4.0071]
[1755472793607,3.2078,4499.3,4499.2,4.0293]
[1755472793807,2.7124,4499.3,4499.2,25.1103]
[1755472794408,2.7124,4499.3,4499.2,22.0881]
[1755472795309,0.2493,4500.3,4499.6,0.44419]
[1755472795509,0.2493,4500.3,4499.9,0.44416]
[1755472795812,0.2493,4500.3,4499.7,3.2078]
[1755472796511,0.2493,4500.3,4499.8,0.44417]
[1755472797201,0.8141,4500.5,4499.8,0.44417]
[1755472797406,0.8141,4500.5,4499.7,3.65198]
[1755472797607,0.2493,4500.5,4499.7,3.65198]
[1755472797808,0.4091,4500.5,4499.7,3.65198]
[1755472798008,0.8141,4500.5,4499.7,3.2078]
[1755472798805,0.8141,4500.5,4499.6,32.44119]
[1755472798806,0.6059,4500.4,4499.6,31.997]
[1755472799011,1.42,4499.7,4499.6,31.997]
[1755472799313,1.62518634,4499.7,4499.6,31.997]
[1755472799511,1.42,4499.7,4499.6,31.997]
[1755472799711,0.2493,4500.3,4499.6,35.2048]
[1755472800110,0.4091,4500.3,4499.6,35.2048]
[1755472800315,0.8141,4500.3,4499.6,35.2048]
[1755472800617,0.4091,4500.3,4499.6,35.2048]
[1755472800811,3.2078,4500.8,4499.6,35.227]
[1755472801716,3.2078,4501.4,4500.7,3.65188]
[1755472801913,0.20534521,4501.3,4500.8,21.057]
[1755472802117,0.2493,4501.3,4500.8,21.057]
[1755472802311,3.4571,4501.4,4500.8,21.057]
[1755472802512,0.20538361,4501.3,4500.8,21.057]
[1755472802712,0.2493,4501.2,4500.8,21.057]
[1755472802912,3.2078,4501.4,4500.8,21.50107]
[1755472804216,0.6487,4501.6,4500.8,21.50107]
[1755472804419,0.20551164,4501.5,4500.8,21.057]
[1755472804623,0.4091,4501.6,4500.9,0.44406]
[1755472804818,0.20549772,4501.5,4500.9,0.44406]
[1755472805011,0.8141,4501.6,4500.8,21.50107]
[1755472805216,0.36529769,4501.5,4500.8,21.057]
[1755472805411,0.5648,4501.5,4500.8,21.057]
[1755472805616,0.2493,4501.4,4500.8,21.057]
[1755472805816,0.4091,4501.4,4500.8,21.057]
[1755472806017,0.8141,4501.4,4500.8,21.057]
[1755472806523,0.8141,4501.4,4500.8,21.50107]
[1755472806826,0.8141,4501.4,4500.8,21.057]
[1755472807024,1.0582,4501.4,4500.8,21.057]
[1755472808218,1.1707,4501.2,4500.8,21.057]
[1755472808412,0.2441,4501.1,4500.8,21.057]
[1755472808617,3.2078,4501.9,4500.7,3.2078]
[1755472808618,0.5648,4500.8,4500.7,3.2078]
[1755472808819,1.42,4500.8,4500.7,24.2098]
[1755472809517,0.6532,4500.8,4500.7,24.2098]
[1755472809918,0.2493,4500.8,4500.7,24.2098]
[1755472811127,0.9266,4500.8,4500.0,3.2078]
[1755472811316,1.42,4500.1,4500.0,3.2078]
[1755472811628,1.42,4500.1,4500.0,24.2128]
[1755472812320,0.5648,4499.7,4499.3,7.7678]
[1755472812520,1.42,4499.7,4499.6,53.002]
[1755472814028,1.42,4499.7,4499.6,52.991]
[1755472815625,1.42,4499.7,4499.6,31.997]
[1755472815928,1.42,4499.7,4499.6,52.987]
[1755472816124,1.586691,4502.4,4498.6,3.2078]
[1755472816125,0.5648,4498.7,4498.6,3.2078]
[1755472816325,1.42,4498.7,4498.6,24.2098]
[1755472816926,1.42,4498.7,4498.6,3.2078]
[1755472817129,0.5648,4498.7,4498.2,4.5398]
[1755472817429,1.42,4498.1,4498.0,1.037]
[1755472817630,1.42,4498.1,4498.0,21.004]
[1755472818326,1.586691,4501.1,4497.4,31.997]
[1755472818327,1.058,4497.5,4497.4,31.997]
[1755472818532,1.4151,4497.5,4497.4,53.002]